bitfinex/quotes_BTCUSD_20250119
["timestamp","ask_amount","ask_price","bid_price","bid_amount"]
[1737303336689,1.10876571,104710.0,104700.0,0.26264571]
[1737303336906,1.10876571,104710.0,104700.0,0.40549503]
[1737303337091,1.10876571,104710.0,104700.0,0.15998503]
[1737303337300,1.10876571,104710.0,104700.0,0.25549503]
[1737303337659,1.32267859,104710.0,104700.0,0.40549503]
[1737303338735,1.32267859,104710.0,104700.0,0.15998503]
[1737303338939,1.32267859,104710.0,104700.0,0.25549503]
[1737303339110,1.5893099,104710.0,104700.0,0.15998503]
[1737303339636,1.4938089,104710.0,104700.0,0.15998503]
[1737303340240,1.80322278,104710.0,104700.0,0.15998503]
[1737303340854,1.80322278,104710.0,104700.0,0.000428]
[1737303341133,1.80322278,104710.0,104700.0,0.150428]
[1737303342574,2.25715763,104710.0,104700.0,0.000428]
[1737303342772,2.25715763,104710.0,104700.0,0.150428]
[1737303345165,2.34247398,104710.0,104700.0,0.000428]
[1737303346286,2.25715763,104710.0,104700.0,0.150428]
[1737303346488,2.25715763,104710.0,104700.0,0.000428]
[1737303347947,2.25715763,104710.0,104700.0,0.150428]
[1737303348091,2.25715763,104710.0,104700.0,0.000428]
[1737303350163,2.25715763,104710.0,104700.0,0.150428]
[1737303353093,2.3423884,104710.0,104700.0,0.150428]
[1737303354425,2.12847552,104710.0,104700.0,0.150428]
[1737303354619,2.03297452,104710.0,104700.0,0.150428]
[1737303354744,2.12847552,104710.0,104700.0,0.150428]
[1737303356713,1.95734521,104710.0,104700.0,0.150428]
[1737303357527,1.95734521,104710.0,104700.0,0.000428]
[1737303357729,1.95734521,104710.0,104700.0,0.150428]
[1737303360119,1.95734521,104710.0,104700.0,0.000428]
[1737303360316,1.95734521,104710.0,104700.0,0.150428]
[1737303363597,1.95734521,104710.0,104700.0,0.15640353]
[1737303366519,1.95734521,104710.0,104700.0,0.33231353]
[1737303366520,1.73004421,104710.0,104700.0,0.33231353]
[1737303367186,1.60169648,104710.0,104700.0,0.25191353]
[1737303367351,1.06219648,104710.0,104700.0,0.25191353]
[1737303368622,0.97696571,104710.0,104700.0,0.25191353]
[1737303374439,1.16329055,104710.0,104700.0,0.00640353]
[1737303374643,1.24469055,104710.0,104700.0,0.00640353]
[1737303374844,1.20326671,104710.0,104700.0,0.15640353]
[1737303375450,1.41684521,104710.0,104700.0,0.15640353]
[1737303375797,1.41684521,104710.0,104700.0,0.00640353]
[1737303376010,1.41684521,104710.0,104700.0,0.15640353]
[1737303376223,1.41684521,104710.0,104700.0,0.00640353]
[1737303376849,1.8018884,104710.0,104700.0,0.00640353]
[1737303377285,1.90112921,104710.0,104700.0,0.00640353]
[1737303377902,1.81589844,104710.0,104700.0,0.00640353]
[1737303378727,1.85732228,104710.0,104700.0,0.00640353]
[1737303379139,1.55784424,104710.0,104700.0,0.00640353]
[1737303380442,1.8145397,104710.0,104700.0,0.00640353]
[1737303381615,1.60062682,104710.0,104700.0,0.00640353]
[1737303384418,1.59965474,104710.0,104700.0,0.00640353]
[1737303385835,1.63174167,104710.0,104700.0,0.00640353]
[1737303387035,1.34295928,104710.0,104700.0,0.00640353]
[1737303388431,1.50891783,104710.0,104700.0,0.00640353]
[1737303389000,1.40967702,104710.0,104700.0,0.00640353]
[1737303389143,1.45110086,104710.0,104700.0,0.00640353]
[1737303389495,1.41896323,104710.0,104700.0,0.00640353]
[1737303390559,1.41896323,104710.0,104700.0,0.00586675]
[1737303391272,1.95846323,104710.0,104700.0,0.00586675]
[1737303392160,2.01310186,104710.0,104700.0,0.00586675]
[1737303393299,0.09551,104700.0,104690.0,0.0004285]
[1737303393470,0.23713145,104700.0,104690.0,0.0004285]
[1737303393754,0.24140877,104700.0,104690.0,0.0004285]
[1737303394660,0.45652094,104700.0,104690.0,0.0004285]
[1737303396150,0.49794478,104700.0,104690.0,0.0004285]
[1737303397318,1.03744478,104700.0,104690.0,0.0004285]
[1737303398518,1.04830888,104700.0,104690.0,0.0004285]
[1737303400182,1.00688504,104700.0,104690.0,0.0004285]
[1737303401327,1.02594038,104700.0,104690.0,0.0004285]
[1737303401688,1.23956686,104700.0,104690.0,0.0004285]
[1737303402875,1.02594038,104700.0,104690.0,0.0004285]
[1737303403357,0.48644038,104700.0,104690.0,0.0004285]
[1737303408632,0.47557628,104700.0,104690.0,0.0004285]
[1737303408859,0.26177013,104700.0,104690.0,0.1744485]
[1737303409051,0.26177013,104700.0,104690.0,0.3244485]
[1737303409798,0.5180785,104700.0,104690.0,0.33042412]
[1737303410240,0.6135885,104700.0,104690.0,0.33042412]
[1737303410439,0.6135885,104700.0,104690.0,0.08490412]
[1737303410860,0.69905909,104700.0,104690.0,0.08490412]
[1737303412166,0.31442928,104700.0,104690.0,0.08490412]
[1737303413609,0.5918477,104700.0,104690.0,0.08490412]
[1737303414612,1.1313477,104700.0,104690.0,0.08490412]
[1737303415060,1.11046529,104700.0,104690.0,0.08490412]
[1737303415734,0.57096529,104700.0,104690.0,0.08393204]
[1737303416266,0.35728013,104700.0,104690.0,0.08393204]
[1737303416502,0.35728013,104700.0,104690.0,0.07795642]
[1737303417281,0.63498058,104700.0,104680.0,0.71540145]
[1737303417495,0.82600458,104700.0,104680.0,0.71540145]
[1737303418109,1.36550458,104700.0,104680.0,0.71540145]
[1737303418312,1.38437515,104700.0,104680.0,0.71539445]
[1737303418515,1.38437515,104700.0,104680.0,0.71838252]
[1737303418844,0.51271197,104690.0,104680.0,0.60483152]
[1737303419059,0.51271197,104690.0,104680.0,0.48430766]
[1737303419176,1.29272775,104690.0,104680.0,0.00954266]
[1737303419384,1.42523662,104690.0,104680.0,0.00954266]
[1737303420254,1.42523662,104690.0,104680.0,0.00655459]
[1737303420455,1.16906066,104690.0,104680.0,0.00655459]
[1737303421161,1.16906066,104690.0,104680.0,0.00057845]
[1737303421985,1.20130704,104690.0,104680.0,0.00057845]
[1737303423006,1.58675621,104690.0,104680.0,0.00057845]
[1737303423334,1.54533237,104690.0,104680.0,0.00057845]
[1737303423534,1.58675621,104690.0,104680.0,0.00057845]
[1737303424178,0.37302465,104690.0,104680.0,0.00057845]
[1737303425689,0.62921792,104690.0,104680.0,0.00057845]
[1737303426430,0.35543408,104690.0,104680.0,0.00057845]
[1737303426641,0.25619327,104690.0,104680.0,0.17360745]
[1737303428260,0.25619327,104690.0,104680.0,0.17958389]
[1737303428461,0.51179924,104690.0,104680.0,0.17958389]
[1737303430569,0.51269805,104690.0,104680.0,0.17958389]
[1737303430962,0.00089881,104690.0,104680.0,0.17958389]
[1737303432707,0.51278335,104690.0,104680.0,0.17958389]
[1737303434127,0.50175113,104690.0,104680.0,0.17958389]
[1737303434529,0.50175113,104690.0,104680.0,0.32958389]
[1737303434777,0.50175113,104690.0,104680.0,0.47958389]
[1737303435534,0.21329829,104690.0,104680.0,0.47958389]
[1737303438074,0.3599959,104690.0,104680.0,0.10208389]
[1737303438258,0.3590391,104690.0,104680.0,0.10208389]
[1737303439052,0.3590391,104690.0,104680.0,0.00655489]
[1737303439236,0.57232433,104690.0,104680.0,0.10208389]
[1737303439453,0.57232433,104690.0,104680.0,0.00655489]
[1737303439586,0.66784433,104690.0,104680.0,0.00655489]
[1737303439788,0.57232433,104690.0,104680.0,0.00655489]
[1737303439983,0.57232433,104690.0,104680.0,0.10208389]
[1737303439984,0.35902604,104690.0,104680.0,0.10208389]
[1737303440181,0.35902604,104690.0,104680.0,0.00655489]
[1737303440586,0.45454604,104690.0,104680.0,0.00655489]
[1737303440795,0.35902604,104690.0,104680.0,0.10208389]
[1737303441212,0.45454604,104690.0,104680.0,0.00655489]
[1737303441395,0.67463133,104690.0,104680.0,0.00655489]
[1737303441799,0.68519807,104690.0,104680.0,0.00655489]
[1737303442054,0.78071807,104690.0,104680.0,0.00655489]
[1737303442637,0.68519807,104690.0,104680.0,0.00655489]
[1737303443162,0.68609688,104690.0,104680.0,0.10208389]
[1737303443376,0.68609688,104690.0,104680.0,0.00655489]
[1737303443570,0.68609688,104690.0,104680.0,0.10208389]
[1737303443751,0.78161688,104690.0,104680.0,0.00655489]
[1737303443954,0.68609688,104690.0,104680.0,0.00655489]
[1737303444314,0.50866863,104690.0,104680.0,0.00655489]
[1737303446230,0.41314863,104690.0,104680.0,0.00655489]
[1737303446829,0.50866863,104690.0,104680.0,0.00655489]
[1737303448142,0.61005699,104690.0,104680.0,0.00655489]
[1737303448343,0.77244416,104690.0,104680.0,0.00655489]
[1737303448524,0.67320335,104690.0,104680.0,0.00655489]
[1737303448723,0.65401499,104690.0,104680.0,0.00655489]
[1737303448956,0.63232321,104690.0,104680.0,0.00655489]
[1737303449342,0.63232321,104690.0,104680.0,0.00057845]
[1737303450761,0.46216863,104690.0,104680.0,0.00057845]
[1737303450958,0.47036863,104690.0,104680.0,0.00057845]
[1737303451315,0.37484863,104690.0,104680.0,0.00057845]
[1737303451932,0.47036863,104690.0,104680.0,0.00057845]
[1737303452136,0.47036863,104690.0,104680.0,0.00655531]
[1737303453327,0.46216863,104690.0,104680.0,0.00655531]
[1737303453491,0.37484863,104690.0,104680.0,0.00655531]
[1737303454340,0.47036863,104690.0,104680.0,0.00655531]
[1737303455583,0.25684108,104690.0,104680.0,0.18418431]
[1737303455744,0.25684108,104690.0,104680.0,0.23238431]
[1737303457031,0.38485566,104690.0,104680.0,0.23238431]
[1737303457199,0.38485566,104690.0,104680.0,0.18418431]
[1737303458267,0.70761784,104690.0,104680.0,0.00655531]
[1737303459428,0.70761784,104690.0,104680.0,0.00645531]
[1737303459813,0.40896898,104690.0,104680.0,0.00645531]
[1737303460226,0.42842333,104690.0,104680.0,0.00645531]
[1737303460957,0.74232442,104690.0,104680.0,0.00645531]
[1737303461965,0.35608189,104690.0,104680.0,0.10198431]
[1737303463106,0.35608189,104690.0,104680.0,0.00645531]
[1737303463260,0.48389334,104690.0,104680.0,0.00645531]
[1737303463645,0.57941334,104690.0,104680.0,0.00645531]
[1737303463850,0.48389334,104690.0,104680.0,0.00645531]
[1737303464043,0.48389334,104690.0,104680.0,0.08855531]
[1737303464228,0.48389334,104690.0,104680.0,0.18408431]
[1737303464624,1.02339334,104690.0,104680.0,0.18408431]
[1737303464827,0.92415253,104690.0,104680.0,0.18408431]
[1737303465574,1.00953759,104690.0,104680.0,0.18408431]
[1737303465772,0.47003759,104690.0,104680.0,0.18408431]
[1737303467164,0.34204137,104690.0,104680.0,0.18408431]
[1737303468669,0.51263886,104690.0,104680.0,0.18408431]
[1737303469435,0.51263886,104690.0,104680.0,0.33408431]
[1737303471411,0.59794188,104690.0,104680.0,0.33408431]
[1737303471552,0.59794188,104690.0,104680.0,0.35708431]
[1737303471963,0.59794188,104690.0,104680.0,0.42023446]
[1737303472167,0.59794188,104690.0,104680.0,0.35708431]
[1737303472710,0.21414788,104690.0,104680.0,0.35708431]
[1737303473784,0.38474537,104690.0,104680.0,0.35708431]
[1737303474148,0.38474537,104690.0,104680.0,0.42023446]
[1737303475250,0.21414788,104690.0,104680.0,0.42023446]
[1737303476776,0.21414788,104690.0,104680.0,0.57023446]
[1737303477941,0.00089881,104690.0,104680.0,0.57023446]
[1737303480081,0.00089881,104690.0,104680.0,0.50708431]
[1737303480250,0.00089881,104690.0,104680.0,0.33408431]
[1737303480445,0.00089881,104690.0,104680.0,0.18408431]
[1737303480446,0.00185561,104690.0,104680.0,0.18408431]
[1737303481250,0.00185561,104690.0,104680.0,0.10198431]
[1737303481684,0.21510468,104690.0,104680.0,0.10198431]
[1737303481894,0.21414788,104690.0,104680.0,0.10198431]
[1737303482726,0.38474537,104690.0,104680.0,0.10198431]
[1737303482887,0.38474537,104690.0,104680.0,0.12498431]
[1737303483083,0.38474537,104690.0,104680.0,0.41953446]
[1737303483372,0.38474537,104690.0,104680.0,0.35638431]
[1737303483814,0.21414788,104690.0,104680.0,0.35638431]
[1737303484045,0.21414788,104690.0,104680.0,0.35653838]
[1737303484583,0.21882116,104690.0,104680.0,0.33353838]
[1737303485218,0.09087511,104690.0,104680.0,0.33353838]
[1737303485740,0.09087511,104690.0,104680.0,0.32756152]
[1737303486894,0.09087511,104690.0,104680.0,0.33353714]
[1737303487119,0.09087511,104690.0,104680.0,0.33338307]
[1737303487292,0.00557209,104690.0,104680.0,0.33338307]
[1737303488335,0.00557209,104690.0,104680.0,0.39653322]
[1737303489172,0.00557209,104690.0,104680.0,0.33338307]
[1737303489766,0.00557209,104690.0,104680.0,0.48338307]
[1737303489934,0.00557209,104690.0,104680.0,0.71717403]
[1737303491443,0.00557209,104690.0,104680.0,0.65402388]
[1737303492123,0.00557209,104690.0,104680.0,0.55478307]
[1737303495141,0.00557209,104690.0,104680.0,0.61793322]
[1737303496272,0.00557209,104690.0,104680.0,0.71717403]
[1737303497321,0.00557209,104690.0,104680.0,0.55478307]
[1737303497634,0.00557209,104690.0,104680.0,0.53178307]
[1737303499347,0.00557209,104690.0,104680.0,0.53193714]
[1737303504963,0.00557209,104690.0,104680.0,0.7173281]
[1737303505188,0.00557209,104690.0,104680.0,0.8173281]
[1737303505387,0.00557209,104690.0,104680.0,0.9673281]
[1737303505609,0.00089881,104690.0,104680.0,0.9673281]
[1737303506335,8.1e-07,104690.0,104680.0,0.9673281]
[1737303509498,8.1e-07,104690.0,104680.0,0.98662828]
[1737303510100,8.1e-07,104690.0,104680.0,1.51816001]
[1737303510890,8.1e-07,104690.0,104680.0,1.68972019]
[1737303512147,8.1e-07,104690.0,104680.0,1.81836246]
[1737303514434,8.1e-07,104690.0,104680.0,1.28381231]
[1737303514636,8.1e-07,104690.0,104680.0,1.32766228]
[1737303515085,8.1e-07,104690.0,104680.0,1.35066228]
[1737303515286,8.1e-07,104690.0,104680.0,1.50066228]
[1737303515797,8.1e-07,104690.0,104680.0,1.47766228]
[1737303516234,8.1e-07,104690.0,104680.0,0.6689281]
[1737303516862,8.1e-07,104690.0,104680.0,0.48353714]
[1737303517069,8.1e-07,104690.0,104680.0,0.40213714]
[1737303518317,8.1e-07,104690.0,104680.0,0.46528729]
[1737303519287,8.1e-07,104690.0,104680.0,0.40213714]
[1737303519491,8.1e-07,104690.0,104680.0,0.5875281]
[1737303519658,8.1e-07,104690.0,104680.0,0.6629281]
[1737303526688,8.1e-07,104690.0,104680.0,0.7105281]
[1737303527304,1.0196497,104710.0,104700.0,0.45866015]
[1737303527520,0.9711497,104710.0,104700.0,0.45866015]
[1737303528226,0.9711497,104710.0,104700.0,0.46463577]
[1737303529586,0.9711497,104710.0,104700.0,0.72542673]
[1737303534873,0.9711497,104710.0,104700.0,0.73608339]
[1737303535833,0.9711497,104710.0,104700.0,0.83608339]
[1737303536080,0.8756497,104710.0,104700.0,1.03218339]
[1737303536401,0.8699297,104710.0,104700.0,1.03218339]
[1737303537008,0.8508297,104710.0,104700.0,1.03218339]
[1737303537217,0.7744297,104710.0,104700.0,1.03218339]
[1737303538090,0.7362297,104710.0,104700.0,1.03218339]
[1737303538300,0.6980297,104710.0,104700.0,1.03218339]
[1737303538477,0.6789297,104710.0,104700.0,1.03218339]
[1737303538674,0.6789297,104710.0,104700.0,1.86313385]
[1737303539128,0.6025297,104710.0,104700.0,1.86313385]
[1737303539304,0.5834297,104710.0,104700.0,1.86313385]
[1737303539658,0.5834297,104710.0,104700.0,1.87125385]
[1737303540308,0.4879297,104710.0,104700.0,1.57062962]
[1737303540674,0.43483885,104710.0,104700.0,1.59533453]
[1737303540857,0.33735882,104710.0,104700.0,1.61806909]
[1737303541054,0.28006782,104710.0,104700.0,1.61806909]
[1737303541289,0.20492382,104710.0,104700.0,1.40386607]
[1737303541662,0.1313,104770.0,104760.0,0.3]
[1737303541796,0.083,104770.0,104760.0,0.64399711]
[1737303542000,0.26188068,104790.0,104780.0,0.245438]
[1737303542247,0.26188068,104790.0,104780.0,0.30858815]
[1737303542698,0.34488068,104790.0,104780.0,0.30858815]
[1737303542936,0.34537997,104790.0,104780.0,0.095438]
[1737303543262,0.34977803,104790.0,104780.0,0.245438]
[1737303543472,0.13619735,104790.0,104780.0,0.245438]
[1737303544046,0.13715415,104790.0,104780.0,0.245438]
[1737303544204,0.13619735,104790.0,104780.0,0.245438]
[1737303544536,0.13715415,104790.0,104780.0,0.245438]
[1737303544761,0.13619735,104790.0,104780.0,0.245438]
[1737303544960,0.13715415,104790.0,104780.0,0.245438]
[1737303545087,0.13619735,104790.0,104780.0,0.245438]
[1737303545495,0.13715415,104790.0,104780.0,0.245438]
[1737303547388,0.13715415,104790.0,104780.0,0.095438]
[1737303547389,0.13805254,104790.0,104780.0,0.095438]
[1737303547604,0.05505254,104790.0,104780.0,0.095438]
[1737303547815,0.05505254,104790.0,104780.0,0.133598]
[1737303547946,0.33042135,104790.0,104770.0,0.10140996]
[1737303548150,0.1303568,104780.0,104770.0,0.29230196]
[1737303548350,0.13475361,104780.0,104770.0,0.13957296]
[1737303549201,0.13475361,104780.0,104770.0,0.133603]
[1737303553008,0.45575361,104780.0,104770.0,0.133603]
[1737303553212,0.45479681,104780.0,104770.0,0.133603]
[1737303558721,0.45479681,104780.0,104770.0,0.038163]
[1737303559196,0.0798,104770.0,104760.0,0.436347]
[1737303559396,0.0798,104770.0,104760.0,0.474511]
[1737303559604,0.08510516,104770.0,104760.0,0.474511]
[1737303560800,0.08510516,104770.0,104760.0,0.48048206]
[1737303562870,0.08510516,104770.0,104760.0,0.04413506]
[1737303563076,0.13340516,104770.0,104760.0,0.10142706]
[1737303563210,0.13340516,104770.0,104760.0,0.00597106]
[1737303563865,0.13340516,104770.0,104760.0,0.10142706]
[1737303564263,0.13340516,104770.0,104760.0,0.00597106]
[1737303564418,0.22885216,104770.0,104760.0,0.00597106]
[1737303564629,0.13244836,104770.0,104760.0,0.00597106]
[1737303564829,0.13340516,104770.0,104760.0,0.00597106]
[1737303566176,0.13340516,104770.0,104760.0,0.10142706]
[1737303567104,0.14368075,104770.0,104760.0,0.10142706]
[1737303569299,0.14368075,104770.0,104760.0,0.00597106]
[1737303569925,0.14368075,104770.0,104760.0,0.10142706]
[1737303570567,0.14368075,104770.0,104760.0,0.00597106]
[1737303570974,0.14368075,104770.0,104760.0,0.10142706]
[1737303571174,0.14368075,104770.0,104760.0,0.00597106]
[1737303571807,0.23912775,104770.0,104760.0,0.00597106]
[1737303572008,0.14272395,104770.0,104760.0,0.00597106]
[1737303572207,0.14368075,104770.0,104760.0,0.00597106]
[1737303573856,0.33821449,104770.0,104760.0,0.00597106]
[1737303574033,0.33725769,104770.0,104760.0,0.00597106]
[1737303576671,0.14256988,104770.0,104760.0,0.10142706]
[1737303577325,0.14256988,104770.0,104760.0,0.16457721]
[1737303577326,0.00434836,104770.0,104760.0,0.16457721]
[1737303577468,0.00434836,104770.0,104760.0,0.70566817]
[1737303578668,0.00434836,104770.0,104760.0,0.70668562]
[1737303579228,0.00434836,104770.0,104760.0,0.77878562]
[1737303580329,0.00434836,104770.0,104760.0,0.88895153]
[1737303580548,0.00089839,104780.0,104770.0,0.25]
[1737303580756,0.00089839,104780.0,104770.0,0.88584564]
[1737303581336,0.00089839,104780.0,104770.0,0.8918167]
[1737303581836,0.00089839,104780.0,104770.0,0.88027917]
[1737303582038,0.00089839,104780.0,104770.0,0.81712902]
[1737303583151,0.00089839,104780.0,104770.0,1.73217645]
[1737303584414,0.00089839,104780.0,104770.0,1.51931608]
[1737303585505,0.00089839,104780.0,104770.0,0.90370801]
[1737303585706,0.00089839,104780.0,104770.0,0.80370801]
[1737303585898,0.00089839,104780.0,104770.0,0.90370801]
[1737303586350,0.00089839,104780.0,104770.0,0.80370801]
[1737303586666,0.00089839,104780.0,104770.0,0.90370801]
[1737303586889,0.00089839,104780.0,104770.0,0.80370801]
[1737303587098,0.00089839,104780.0,104770.0,0.79839466]
[1737303587632,0.00089839,104780.0,104770.0,0.73584056]
[1737303589861,0.00089839,104780.0,104770.0,0.83584056]
[1737303591087,0.00089839,104780.0,104770.0,0.89899071]
[1737303591296,0.00089839,104780.0,104770.0,0.83686545]
[1737303591710,3.9e-07,104780.0,104770.0,0.9000156]
[1737303591913,7e-08,104790.0,104780.0,0.594438]
[1737303592117,1.3e-07,104800.0,104790.0,0.563728]
[1737303592322,1.3e-07,104800.0,104790.0,1.01526911]
[1737303592323,8.6e-07,104800.0,104790.0,1.01526911]
[1737303592525,8.6e-07,104800.0,104790.0,1.04354931]
[1737303593344,0.00089964,104810.0,104800.0,0.7207193]
[1737303593345,5e-07,104810.0,104800.0,0.7207193]
[1737303593546,5e-07,104810.0,104800.0,0.81996011]
[1737303594119,5e-07,104810.0,104800.0,0.76278102]
[1737303594958,5e-07,104810.0,104800.0,0.91278102]
[1737303595162,5e-07,104810.0,104800.0,1.01292899]
[1737303595373,5e-07,104810.0,104800.0,1.05822899]
[1737303595577,5e-07,104810.0,104800.0,1.05925116]
[1737303595809,3.6e-07,104820.0,104810.0,0.74441]
[1737303596015,3.6e-07,104820.0,104810.0,0.93567878]
[1737303596437,3.6e-07,104820.0,104810.0,0.99882893]
[1737303597295,3.6e-07,104820.0,104810.0,1.00479999]
[1737303598088,3.6e-07,104820.0,104810.0,1.00731999]
[1737303602719,3.6e-07,104820.0,104810.0,1.00479999]
[1737303603144,0.0004283,104830.0,104820.0,0.6447013]
[1737303603275,0.0004283,104830.0,104820.0,0.74394211]
[1737303603499,0.0004283,104830.0,104820.0,0.75589517]
[1737303603844,0.0004283,104830.0,104820.0,0.76288675]
[1737303605163,0.0004283,104830.0,104820.0,0.76186623]
[1737303606484,0.0004283,104830.0,104820.0,0.66186623]
[1737303606936,0.0004283,104830.0,104820.0,0.66567923]
[1737303607249,0.00089964,104840.0,104830.0,0.2704837]
[1737303607372,0.00104959,104840.0,104830.0,0.43287466]
[1737303607910,0.00104959,104840.0,104830.0,0.41686575]
[1737303608130,0.08274959,104840.0,104830.0,0.41686575]
[1737303608302,0.08274959,104840.0,104830.0,0.43986575]
[1737303609280,0.08274959,104840.0,104830.0,0.3537156]
[1737303609895,0.08274959,104840.0,104830.0,0.10447479]
[1737303610295,0.08274959,104840.0,104830.0,0.31762494]
[1737303610997,0.08274959,104840.0,104830.0,0.31660491]
[1737303612178,0.08274959,104840.0,104830.0,0.31762494]
[1737303612585,0.08274959,104840.0,104830.0,0.25447479]
[1737303613207,0.08274959,104840.0,104830.0,0.31762494]
[1737303613409,0.08274959,104840.0,104830.0,0.31063385]
[1737303613805,0.08274959,104840.0,104830.0,0.2474837]
[1737303614007,0.12874959,104840.0,104830.0,0.0020917]
[1737303614277,0.38748035,104840.0,104830.0,0.0020917]
[1737303614590,0.2279904,104840.0,104830.0,0.0020917]
[1737303614807,0.3233734,104840.0,104830.0,0.00805819]
[1737303615014,0.2279904,104840.0,104830.0,0.00805819]
[1737303615733,0.2321647,104840.0,104830.0,0.00805819]
[1737303615938,0.13292389,104840.0,104830.0,0.10345019]
[1737303617666,0.14317662,104840.0,104830.0,0.10345019]
[1737303618910,0.46417662,104840.0,104830.0,0.10345019]
[1737303620900,0.45392389,104840.0,104830.0,0.10345019]
[1737303621116,0.44974959,104840.0,104830.0,0.10345019]
[1737303621657,0.45404422,104840.0,104830.0,0.10345019]
[1737303622067,0.45404422,104840.0,104830.0,0.16660034]
[1737303622273,0.45404422,104840.0,104830.0,0.16762047]
[1737303622970,0.40804422,104840.0,104830.0,0.16762047]
[1737303623220,0.40804422,104840.0,104830.0,0.31762047]
[1737303625858,0.40804422,104840.0,104830.0,0.25447032]
[1737303627695,0.00534422,104840.0,104830.0,0.69874478]
[1737303628094,0.00104959,104840.0,104830.0,0.69874478]
[1737303628525,0.00104959,104840.0,104830.0,0.66664945]
[1737303628680,0.07994959,104840.0,104830.0,0.25135849]
[1737303629813,0.07994959,104840.0,104830.0,0.33691259]
[1737303630192,0.07994959,104840.0,104830.0,0.48691259]
[1737303630816,0.07994959,104840.0,104830.0,0.48781139]
[1737303631297,0.07994959,104840.0,104830.0,0.40225729]
[1737303631968,0.07994959,104840.0,104830.0,0.46540744]
[1737303632168,0.00584724,104840.0,104830.0,0.56464825]
[1737303632827,0.00584724,104840.0,104830.0,0.56566169]
[1737303633469,0.00584724,104840.0,104830.0,0.58866169]
[1737303633670,0.00997686,104840.0,104830.0,0.58866169]
[1737303633882,0.00584724,104840.0,104830.0,0.58866169]
[1737303635930,0.00584724,104840.0,104830.0,0.58764825]
[1737303636810,0.00584724,104840.0,104830.0,0.67320235]
[1737303637173,0.00584724,104840.0,104830.0,0.75310235]
[1737303637396,0.00584724,104840.0,104830.0,0.7720658]
[1737303638000,0.00584724,104840.0,104830.0,0.6865117]
[1737303638637,0.00584724,104840.0,104830.0,0.68752702]
[1737303639126,0.00584724,104840.0,104830.0,0.77308112]
[1737303641074,0.00584724,104840.0,104830.0,0.79420806]
[1737303641273,0.00584724,104840.0,104830.0,0.85735821]
[1737303641504,0.08499881,104870.0,104860.0,0.3]
[1737303641675,0.08499881,104870.0,104860.0,0.55775596]
[1737303641908,0.08958228,104870.0,104860.0,0.55775596]
[1737303642165,0.09408969,104870.0,104860.0,0.55775596]
[1737303642497,0.09408969,104870.0,104860.0,0.58075596]
[1737303642931,0.00909088,104870.0,104860.0,0.58075596]
[1737303643106,0.00909088,104870.0,104860.0,0.58773777]
[1737303645041,0.00909088,104870.0,104860.0,0.59816878]
[1737303646130,0.00909088,104870.0,104860.0,0.59118697]
[1737303646329,0.00909088,104870.0,104860.0,0.61031703]
[1737303646531,0.00909088,104870.0,104860.0,0.61628126]
[1737303649393,0.00909088,104870.0,104860.0,0.61729401]
[1737303649950,0.08229088,104870.0,104860.0,0.61729401]
[1737303650131,0.08457786,104870.0,104860.0,0.61729401]
[1737303652275,0.00917786,104870.0,104860.0,0.61729401]
[1737303655006,0.00960576,104870.0,104860.0,0.61729401]
[1737303656681,0.00960576,104870.0,104860.0,0.61031703]
[1737303657861,0.00960576,104870.0,104860.0,0.61729393]
[1737303660678,0.00960576,104870.0,104860.0,0.69689393]
[1737303661344,0.0004281,104880.0,104870.0,0.6242563]
[1737303661519,0.00057802,104880.0,104870.0,0.72349711]
[1737303662296,0.00057802,104880.0,104870.0,0.73544625]
[1737303662491,0.00057802,104880.0,104870.0,0.74141027]
[1737303662870,0.00057802,104880.0,104870.0,0.68207112]
[1737303663115,0.00057802,104880.0,104870.0,0.76762522]
[1737303663324,0.00057802,104880.0,104870.0,0.7616612]
[1737303663556,0.00057802,104880.0,104870.0,0.74971206]
[1737303664486,0.00057802,104880.0,104870.0,0.75567442]
[1737303666050,0.00057802,104880.0,104870.0,0.76555876]
[1737303666726,0.00057802,104880.0,104870.0,0.75567442]
[1737303667138,0.00057802,104880.0,104870.0,0.7652141]
[1737303667624,0.00057802,104880.0,104870.0,0.77509844]
[1737303668806,0.00057802,104880.0,104870.0,0.7652141]
[1737303669014,0.00057802,104880.0,104870.0,0.67966]
[1737303669320,0.00761899,104880.0,104870.0,0.67966]
[1737303669519,0.00761899,104880.0,104870.0,0.60006]
[1737303670518,0.00761899,104880.0,104870.0,0.68533885]
[1737303670939,0.00057802,104880.0,104870.0,0.68533885]
[1737303671737,0.00057802,104880.0,104870.0,0.60006]
[1737303672137,0.00765898,104880.0,104870.0,0.60006]
[1737303674809,0.00765898,104880.0,104870.0,0.59219171]
[1737303678358,0.00765898,104880.0,104870.0,0.59309009]
[1737303680665,0.00765898,104880.0,104870.0,0.59405876]
[1737303681468,0.00765898,104880.0,104870.0,0.67145876]
[1737303683226,0.00765898,104880.0,104870.0,0.67049009]
[1737303683580,0.00765898,104880.0,104870.0,0.75576894]
[1737303685560,0.00765898,104880.0,104870.0,0.67836894]
[1737303686007,0.00765898,104880.0,104870.0,1.12197185]
[1737303686230,0.00765898,104880.0,104870.0,1.17057185]
[1737303686833,0.00765898,104880.0,104870.0,1.34112956]
[1737303688231,0.00765898,104880.0,104870.0,1.40427972]
[1737303688585,0.00765898,104880.0,104870.0,1.34112957]
[1737303688806,0.00765898,104880.0,104870.0,1.37049257]
[1737303689213,0.00765898,104880.0,104870.0,1.43364272]
[1737303689416,0.00765898,104880.0,104870.0,1.37049257]
[1737303690638,0.00765898,104880.0,104870.0,1.49887668]
[1737303691834,0.00765898,104880.0,104870.0,1.37049257]
[1737303692860,0.00765898,104880.0,104870.0,1.19993486]
[1737303695094,0.00765898,104880.0,104870.0,1.37116476]
[1737303695221,0.00765898,104880.0,104870.0,1.43431491]
[1737303695421,0.00765898,104880.0,104870.0,1.37116476]
[1737303696329,0.00765898,104880.0,104870.0,1.43431491]
[1737303697649,0.00765898,104880.0,104870.0,1.26308501]
[1737303697842,0.00765898,104880.0,104870.0,1.19993486]
[1737303700664,0.00765898,104880.0,104870.0,1.45577143]
[1737303701812,0.00765898,104880.0,104870.0,1.24257429]
[1737303703587,0.00765898,104880.0,104870.0,1.19397429]
[1737303704188,0.00765898,104880.0,104870.0,0.62245309]
[1737303704966,0.00765898,104880.0,104870.0,0.64179984]
[1737303708166,0.00765898,104880.0,104870.0,1.21554662]
[1737303710974,0.08329839,104890.0,104880.0,0.31513171]
[1737303711178,0.00089839,104890.0,104880.0,0.63509243]
[1737303711374,0.00089839,104890.0,104880.0,0.63671999]
[1737303712446,0.00089839,104890.0,104880.0,1.21046677]
[1737303712581,0.00089839,104890.0,104880.0,1.22596881]
[1737303713147,0.00089839,104890.0,104880.0,1.18146524]
[1737303713352,0.00298931,104890.0,104880.0,1.18146524]
[1737303717709,0.00298931,104890.0,104880.0,1.20030347]
[1737303720657,0.08588931,104890.0,104880.0,1.20030347]
[1737303720963,0.08588931,104890.0,104880.0,1.21038404]
[1737303721119,0.08588931,104890.0,104880.0,1.10488714]
[1737303721323,0.08588931,104890.0,104880.0,1.13605502]
[1737303721562,0.08588931,104890.0,104880.0,1.02730347]
[1737303722195,0.08588931,104890.0,104880.0,1.13605502]